Cogmind - Beta 16 @@@ ROGUE MODE // 2025.10.29 @ 14:08:50 Player: satan5 Result: Destroyed by G-50 Soldier with Heavy Laser Performance ------------- Evolutions (3) 1500 Regions Visited (10) 2000 Robots Destroyed (139) 695 Value Destroyed (4464) 4464 Prototype IDs (34) 680 Alien Tech Used (0) 0 Bonus (1574) 1574 TOTAL SCORE: 10913 Bonus ------- High Alert Combat Kills 734 Follower Combat Kills 40 Entered Garrisons 200 Met Data Miner 300 Acquired ECA 300 Cogmind --------- Core Integrity 0/700 Matter 290/300 Energy 91/100 System Corruption 2% Temperature Cool (9) Movement Core (50) Location -6/Proximity Caves Parts ------- > --- POWER (1) -------- (None) > --- PROPULSION (5) --- (None) > --- UTILITY (5) ------ Improved Signal Interpreter 0b10 Decoder Chip [Scout] Hacking Suite > --- WEAPON (2) ------- (None) > --- INVENTORY (5) ---- Encrypted Comm Array Gatling Laser Minigun Hypervelocity Gauss Rifle Improved Grenade Launcher Peak State ------------ > --- POWER ------------ Light Angular Momentum Engine > --- PROPULSION ------- Airjet Airjet Airjet Airjet Gravmag System > --- UTILITY ---------- Large Storage Unit Improved Sensor Array Improved Signal Interpreter Gun Armor Hacking Suite > --- WEAPON ----------- Cooled Pulse Rifle High-powered Shotgun Enhanced Autogun > --- INVENTORY -------- Hybrid Deuterium Engine Airjet Airjet Gravmag System Advanced Heat Sink Improved Terrain Scanner Makeshift System Restoration Module Heavy Laser Heavy Ion Cannon High-powered Shotgun High-powered Shotgun High-powered Shotgun High-powered Shotgun Improved Grenade Launcher Heavy Flail [Rating: 57] Favorites ----------- Power Hybrid Deuterium Engine Engine Hybrid Deuterium Engine Propulsion Armored Treads Treads Armored Treads Leg Aluminum Leg Hover Unit Airjet Utility Large Storage Unit Device Improved Sensor Array Storage Large Storage Unit Processor Targeting Computer Hackware Hacking Suite Protection Gun Armor Weapon Enhanced Autogun Energy Gun Subdweller Laser Energy Cannon Heavy Ion Cannon Ballistic Gun Enhanced Autogun Launcher Improved Grenade Launcher Impact Weapon Heavy Flail Build | -11 -10 -10 -8 -8 -8 -7 -7 -7 -7 -6 ------- Run | Yrd Mat Sub Mat Gar Mat Fac Low Low Dat Pro Slots Evolved 6 | . . . 4 . . 2 . . . . Power . | . . . . . . . . . . . Propulsion 3 | . . . 2 . . 1 . . . . Utility 3 | . . . 2 . . 1 . . . . Weapon . | . . . . . . . . . . . Parts Attached 74 | 7 2 7 27 3 13 11 1 . . 3 Power 5 | 1 . 1 1 . 1 . . . . 1 Engine 5 | 1 . 1 1 . 1 . . . . 1 Core . | . . . . . . . . . . . Reactor . | . . . . . . . . . . . Propulsion 31 | 2 . 1 14 . 8 5 1 . . . Treads 9 | . . . 5 . 4 . . . . . Leg 11 | 2 . 1 8 . . . . . . . Wheel . | . . . . . . . . . . . Hover 11 | . . . 1 . 4 5 1 . . . Flight . | . . . . . . . . . . . Utility 17 | 2 2 1 3 1 2 4 . . . 2 Device 5 | 1 . . 1 . 2 1 . . . . Storage 3 | 1 1 1 . . . . . . . . Processor 4 | . 1 . 1 . . 1 . . . 1 Hackware 4 | . . . 1 . . 2 . . . 1 Protection 1 | . . . . 1 . . . . . . Artifact . | . . . . . . . . . . . Weapon 21 | 2 . 4 9 2 2 2 . . . . Energy Gun 6 | 1 . 2 1 . 1 1 . . . . Energy Cannon 5 | . . 1 3 1 . . . . . . Ballistic Gun 7 | 1 . 1 3 1 . 1 . . . . Ballistic Cannon . | . . . . . . . . . . . Launcher 2 | . . . 1 . 1 . . . . . Special Weapon . | . . . . . . . . . . . Impact Weapon 1 | . . . 1 . . . . . . . Slashing Weapon . | . . . . . . . . . . . Piercing Weapon . | . . . . . . . . . . . Special Melee Weapon . | . . . . . . . . . . . Unidentified Prototypes 5 | . . . 4 . . 1 . . . . Parts Lost 28 | . . 4 3 1 4 5 1 . . 10 Power 3 | . . 1 . . 1 . . . . 1 Propulsion 12 | . . 1 2 . . 3 1 . . 5 Utility 3 | . . . . . . . . . . 3 Weapon 10 | . . 2 1 1 3 2 . . . 1 Highest Loss Streak 7 | . . 2 2 1 3 3 1 . . 7 To Critical Strikes 2 | . . . . . 1 . . . . 1 Average Backups 13 | 1 4 11 14 14 13 14 14 15 15 10 Power . | . 1 . . 1 1 1 1 1 1 . Propulsion 4 | . 1 3 4 5 3 3 . . . . Utility 3 | . 1 2 3 3 4 3 3 3 3 1 Weapon 5 | . 1 4 6 3 4 6 10 10 10 7 Tool/Special . | . . . . . . . . . . . Unused Backups 29 | . . 1 12 . 2 3 2 1 . 8 Power . | . . . . . . . . . . . Propulsion 5 | . . . 3 . 2 . . . . . Utility 2 | . . 1 . . . . . . . 1 Weapon 21 | . . . 9 . . 3 2 1 . 6 Tool/Special 1 | . . . . . . . . . . 1 Average Slot Usage (%) 97 | . 100 99 92 99 99 96 99 100 100 81 Engine 8 | . 14 13 9 7 7 7 7 7 7 6 Treads 16 | . . . 17 30 28 . . . . . Leg 9 | . 28 28 16 . . . . . . . Hover 5 | . . . . . 2 34 37 38 38 23 Device 2 | . 6 . 4 . 2 7 7 7 7 6 Storage 8 | . 14 14 9 7 7 7 7 7 7 3 Processor 12 | . 7 14 14 15 13 7 7 7 7 7 Hackware 2 | . . . 3 . . 5 15 15 15 17 Protection 3 | . . . . 7 7 6 . . . . Energy Gun 3 | . 14 9 . . 2 2 7 7 7 6 Energy Cannon 3 | . . 6 7 1 2 4 . . . . Ballistic Gun 16 | . 14 12 8 27 22 11 7 7 7 6 Peak Build Rating 57 | 9 9 12 37 50 51 57 47 47 47 47 Average Rating 36 | 4 7 10 31 49 49 53 46 47 47 37 On Entrance 32 | . 9 7 12 37 50 51 46 47 47 47 Avg Prop Armor Cover (%) 13 | . . . 13 . 18 . . . . . Naked Turns . | . . . . . . . . . . . Heaviest Build 48 | 13 18 35 44 48 48 48 37 37 37 37 Greatest Support 80 | 20 20 20 80 80 80 41 41 41 41 41 Greatest Overweight (x) 4 | 3 . 1 4 . 2 1 . . . 2 Average Overweight (x) . | . . . . . . . . . . . Largest Inventory Capacity 15 | 8 10 15 15 15 15 15 15 15 15 15 Average Capacity 14 | 7 9 12 15 15 15 15 15 15 15 10 Most Carried 15 | 2 7 15 15 15 15 15 15 15 15 15 Average Carried 13 | 1 4 11 14 14 13 14 14 15 15 9 Final Capacity 15 | 8 10 15 15 15 15 15 15 15 15 5 Final Carried 15 | 2 7 15 15 15 15 15 15 15 15 5 Class Distribution -------------------- 41% | Gunner 41% | Mutant 8% | Hacker-Mutant 5% | Scavenger-Mutant 3% | Skirmisher Dominant Class ---------------- Mutant | -10/Materials Mutant | -10/Subcaves Mutant | -8/Materials Gunner | -8/Garrison Gunner | -8/Materials Skirmisher | -7/Factory Hacker-Mutant | -7/Lower Caves Hacker-Mutant | -7/Lower Caves Hacker-Mutant | -7/Data Miner Hacker-Mutant | -6/Proximity Caves Resources | -11 -10 -10 -8 -8 -8 -7 -7 -7 -7 -6 ----------- Run | Yrd Mat Sub Mat Gar Mat Fac Low Low Dat Pro Matter Collected 3304 | 182 30 267 786 895 783 160 164 . . 37 Remotely . | . . . . . . . . . . . Salvage Created 5076 | 24 74 414 1895 898 1416 265 24 . . 66 Parts 304 | 4 6 25 101 63 88 12 . . . 5 Haulers Intercepted 9 | . 1 . 4 . 3 1 . . . . Recyclers Shooed 5 | . . . 3 . 1 1 . . . . Parts Field Recycled . | . . . . . . . . . . . Retrieved Matter . | . . . . . . . . . . . Parts Self-Destructed 25 | . . 18 . . . . 2 . . 5 Prevented . | . . . . . . . . . . . Parts Restored . | . . . . . . . . . . . Kills | -11 -10 -10 -8 -8 -8 -7 -7 -7 -7 -6 ------- Run | Yrd Mat Sub Mat Gar Mat Fac Low Low Dat Pro Combat Hostiles Destroyed 108 | . . 11 32 29 23 8 1 . . 4 Guns 75 | . . 10 11 26 16 7 1 . . 4 Cannons 20 | . . 1 16 . 2 1 . . . . AOE 13 | . . . 5 3 5 . . . . . Classes Destroyed 16 | 1 2 4 5 1 2 . . . . 1 Worker 5 | . . . . . 5 . . . . . Builder 4 | . . . 2 . 2 . . . . . Tunneler 2 | 1 . . 1 . . . . . . . Hauler 9 | . 1 . 4 . 3 1 . . . . Recycler 2 | . . . 1 . 1 . . . . . Operator 3 | . . . 1 . 2 . . . . . Drone 1 | . . . . . . . . . . 1 Watcher 6 | . 1 . 4 . 1 . . . . . Swarmer 34 | . . 2 4 15 2 7 1 . . 3 Grunt 43 | . . 1 20 9 13 . . . . . Duelist 1 | . . . 1 . . . . . . . Protector 1 | . . . . . 1 . . . . . Sentry 15 | . . 1 6 3 5 . . . . . Hunter 4 | . . . 1 1 2 . . . . . Programmer 2 | . . . . 1 . 1 . . . . Subdweller 7 | . . 7 . . . . . . . . Best Kill Streak 10 | 1 1 2 7 5 10 4 1 . . 3 Combat Bots Only 7 | . . 2 6 5 7 4 1 . . 3 Max Kills in Single Turn 3 | 1 1 1 3 3 2 1 1 . . 1 Gunslinging 1 | . . . . 1 . . . . . . Exploded 3 | . . . 3 2 2 . . . . . Melee . | . . . . . . . . . . . Uniques/NPCs Destroyed . | . . . . . . . . . . . Combat | -11 -10 -10 -8 -8 -8 -7 -7 -7 -7 -6 -------- Run | Yrd Mat Sub Mat Gar Mat Fac Low Low Dat Pro Hostile Shots Fired 478 | . . 49 124 75 88 39 7 . . 96 Missed 135 | . . 16 29 24 23 7 4 . . 32 Hits 343 | . . 33 95 51 65 32 3 . . 64 Melee 2 | . . . 1 . . . . . . 1 Projectile 341 | . . 33 94 51 65 32 3 . . 63 Critical Strikes 19 | . . . 10 4 4 . . . . 1 Part Disruptions 2 | . . . 2 . . . . . . . Damage Taken 5467 | . . 621 1551 724 999 504 47 . . 1021 Core 1143 | . . 124 174 47 96 103 13 . . 586 Absorbed by Shields . | . . . . . . . . . . . Core Remaining (%) 64 | 100 . 50 . . 42 . . . . . Volleys Fired 357 | 2 8 56 125 52 66 19 4 4 . 21 Largest 4 | 2 2 2 2 4 4 3 2 1 . 2 Hottest 140 | 60 60 140 130 140 140 140 85 60 . 85 Shots Fired 861 | 4 14 108 243 201 209 43 7 4 . 28 Gun 683 | 4 14 104 116 196 176 34 7 4 . 28 Cannon 167 | . . 4 124 3 27 9 . . . . Launcher 11 | . . . 3 2 6 . . . . . Special . | . . . . . . . . . . . Kinetic 583 | 2 8 71 116 196 151 26 3 . . 10 Thermal 228 | 2 6 25 124 3 27 15 4 4 . 18 Explosive 6 | . . . . . 6 . . . . . Electromagnetic 44 | . . 12 3 2 25 2 . . . . Robot Hit Streak 18 | 1 6 18 16 17 11 3 3 . . 3 Robot Miss Streak 6 | 3 1 4 2 6 4 4 2 . . 4 Penetration Max . | . . . . . . . . . . . Secondary Targets 12 | . . 1 1 8 2 . . . . . Max Gunslinging Chain 2 | . . 1 1 2 1 . . . . . Shots Hit Robots 500 | 1 8 56 164 110 123 23 4 . . 11 Core Hits 229 | 1 3 21 72 44 68 13 2 . . 5 Critical Kills 4 | . . 1 1 2 . . . . . . Critical Parts Destroyed . | . . . . . . . . . . . Critical Strikes 8 | . . 2 1 2 . 1 . . . 2 Burn 3 | . . . . . . 1 . . . 2 Meltdown 1 | . . . 1 . . . . . . . Destroy 4 | . . 2 . 2 . . . . . . Melee Attacks 30 | . . . 3 22 . 5 . . . . Impact 30 | . . . 3 22 . 5 . . . . Slashing . | . . . . . . . . . . . Piercing . | . . . . . . . . . . . Sneak Attacks 1 | . . . . . . 1 . . . . Combat Hostiles . | . . . . . . . . . . . Follow-up Attacks . | . . . . . . . . . . . Damage Inflicted 11183 | 10 77 921 4132 2014 3045 590 68 . . 326 Guns 6730 | 10 77 843 1306 1914 1816 370 68 . . 326 Cannons 3082 | . . 78 2461 . 461 82 . . . . Explosions 1136 | . . . 290 100 746 . . . . . Melee 167 | . . . 29 . . 138 . . . . Ramming 68 | . . . 46 . 22 . . . . . Kinetic 5649 | 10 43 441 1306 1914 1519 286 32 . . 98 Thermal 3853 | . 34 377 2506 . 506 166 36 . . 228 Explosive 701 | . . . . . 701 . . . . . Electromagnetic 745 | . . 103 245 100 297 . . . . . Impact 167 | . . . 29 . . 138 . . . . Slashing . | . . . . . . . . . . . Piercing . | . . . . . . . . . . . Highest Corruption 2 | . . . . . . 2 2 2 2 2 Average Corruption 1 | . . . . . . 1 2 2 2 2 Corruption Purged . | . . . . . . . . . . . Corruption Blocked . | . . . . . . . . . . . Effects 14 | . . . . . . 1 1 3 1 8 Message Errors 4 | . . . . . . 1 . 1 . 2 Matter Fused 2 | . . . . . . . . 1 . 1 Heat Flow Errors 1 | . . . . . . . . 1 . . Energy Discharges 1 | . . . . . . . . . 1 . Data Loss (minor) 3 | . . . . . . . 1 . . 2 Data Loss (major) 1 | . . . . . . . . . . 1 Misfires 2 | . . . . . . . . . . 2 Overload Shots 22 | . . . . . . . 4 4 . 14 Overflow Damage 45 | . . . 24 5 16 . . . . . Projectiles 28 | . . . 19 . 9 . . . . . Explosions 17 | . . . 5 5 7 . . . . . Melee . | . . . . . . . . . . . Knockbacks 1 | . . . . . . 1 . . . . Impact 1 | . . . . . . 1 . . . . Kinetic . | . . . . . . . . . . . Secondary . | . . . . . . . . . . . Self-Inflicted Damage 181 | . . . 95 66 20 . . . . . Shots 8 | . . . 4 3 1 . . . . . Rammed 3 | . . . . . 3 . . . . . Targets Rammed 12 | 1 . . 8 . 3 . . . . . Kicked 9 | 1 . . 8 . . . . . . . Crushed . | . . . . . . . . . . . Highest Temperature 391 | 20 40 63 207 383 391 70 45 271 . 109 Average Temperature 92 | 15 21 31 39 145 139 17 21 101 . 38 Received Heat Transfer 1695 | . . 87 810 261 441 . . . . 96 Effects 18 | . . . . 10 6 . . 2 . . Energy Bleed 4 | . . . . 1 1 . . 2 . . Interference 11 | . . . . 7 4 . . . . . Matter Decay 1 | . . . . . 1 . . . . . Damage (minor) 2 | . . . . 2 . . . . . . Siege Activations . | . . . . . . . . . . . Martial Activations . | . . . . . . . . . . . Shielding Activations . | . . . . . . . . . . . Robots Disrupted . | . . . . . . . . . . . Combat Hostiles . | . . . . . . . . . . . Robots Corrupted . | . . . . . . . . . . . Combat Hostiles . | . . . . . . . . . . . Parts Fried 5 | . . . 4 1 . . . . . . Impact Corruptions . | . . . . . . . . . . . Robots Melted 1 | . . . 1 . . . . . . . Combat Hostiles . | . . . . . . . . . . . Parts Melted 16 | . . 3 5 . 1 5 . . . 2 Heat Transferred 5564 | . 75 486 3467 . 629 333 50 . . 524 Parts Sabotaged . | . . . . . . . . . . . Parts Stolen . | . . . . . . . . . . . Parts Stripped . | . . . . . . . . . . . Power Chain Reactions 3 | . . . 1 1 1 . . . . . Alert | -11 -10 -10 -8 -8 -8 -7 -7 -7 -7 -6 ------- Run | Yrd Mat Sub Mat Gar Mat Fac Low Low Dat Pro Maximum Alert Level 5 | . . . 2 5 3 2 . . . . Low Security (%) 24 | 100 100 . 56 4 . . . . . . Level 1 21 | . . . 34 9 . 84 . . . . Level 2 9 | . . . 8 9 11 15 . . . . Level 3 30 | . . . . 44 88 . . . . . Level 4 9 | . . . . 23 . . . . . . Level 5 3 | . . . . 8 . . . . . . High Security . | . . . . . . . . . . . Max Security . | . . . . . . . . . . . Peak Influence 1740 | 5 10 . 429 1740 954 421 . . . . Initial 848 | . . . . 111 848 410 . . . . Average 594 | . 1 . 201 933 868 340 . . . . Influence Increases 4376 | 5 32 150 1081 1649 812 262 140 . . 245 Destroy 0b10 Robot/C 2020 | . . 80 640 580 440 160 20 . . 100 Destroy 0b10 Robot/NC 165 | 5 10 . 65 . 75 5 . . . 5 Destroy Leader 390 | . 4 10 176 40 118 32 . . . 10 Allied During Kill 10 | . . . . . . . . . . 10 Trap Triggered on 0b10 10 | . . . 10 . . . . . . . Successful Hack 64 | . 18 . 8 30 8 . . . . . Disable Machine 120 | . . . 60 15 45 . . . . . Anti-Garrison Action 900 | . . . . 900 . . . . . . Destroy Structure 157 | . . . 32 69 51 5 . . . . Partial Spotted 15 | . . . . . 15 . . . . . Lose Combat Pursuer 525 | . . 60 90 15 60 60 120 . . 120 Influence Decreases 4281 | 5 32 150 910 80 1648 830 205 133 138 150 Entered New Map 1762 | . . . . 60 892 494 125 53 138 . Time Decay 1729 | 5 32 150 580 . 416 286 70 80 . 110 Lost Part 180 | . . . 30 10 40 50 10 . . 40 Lost Ally 10 | . . . . 10 . . . . . . Purge Threat 600 | . . . 300 . 300 . . . . . Squads Dispatched 18 | . 1 . 6 . 6 4 . . . 1 Investigation 3 | . . . . . 3 . . . . . Extermination 2 | . . . . . . 2 . . . . Reinforcement 9 | . 1 . 4 . 2 2 . . . . Assault 2 | . . . . . 1 . . . . 1 Garrison 2 | . . . 2 . . . . . . . Intercept . | . . . . . . . . . . . Searches Triggered . | . . . . . . . . . . . Construction Impeded 3 | . . . 2 . 1 . . . . . Haulers Reinforced . | . . . . . . . . . . . Active Scanning Responses . | . . . . . . . . . . . Cargo Convoy Interrupts . | . . . . . . . . . . . Stealth | -11 -10 -10 -8 -8 -8 -7 -7 -7 -7 -6 --------- Run | Yrd Mat Sub Mat Gar Mat Fac Low Low Dat Pro Distress Signals 8 | . . . 7 . 1 . . . . . Communications Jammed . | . . . . . . . . . . . Distress Signals . | . . . . . . . . . . . Times Spotted 175 | . 2 15 58 30 35 12 3 . . 20 Peak Tracking Total 14 | . 1 3 8 4 8 4 9 . . 14 Tactical Retreats 21 | . . 2 5 1 3 2 4 . . 4 Traps | -11 -10 -10 -8 -8 -8 -7 -7 -7 -7 -6 ------- Run | Yrd Mat Sub Mat Gar Mat Fac Low Low Dat Pro Traps Triggered 6 | . . 1 1 . 3 1 . . . . Indirectly . | . . . . . . . . . . . Trap Hack Attempts . | . . . . . . . . . . . Triggered . | . . . . . . . . . . . Disarmed . | . . . . . . . . . . . Reprogrammed . | . . . . . . . . . . . Reused 1 | . . . 1 . . . . . . . Traps Extracted . | . . . . . . . . . . . Installed 1 | . . . 1 . . . . . . . Triggered 1 | . . . 1 . . . . . . . Most Traps Carried 1 | . . 1 1 . . . . . . . Machines | -11 -10 -10 -8 -8 -8 -7 -7 -7 -7 -6 ---------- Run | Yrd Mat Sub Mat Gar Mat Fac Low Low Dat Pro Machines Disabled 13 | . . 1 4 4 3 . . 1 . . Max in Single Turn 2 | . . 1 1 2 1 . . 1 . . Phase Generator 1 | . . . . 1 . . . . . . Machines Repaired . | . . . . . . . . . . . Machines Dismantled . | . . . . . . . . . . . Machines Sabotaged . | . . . . . . . . . . . Overloaded Fab Kills . | . . . . . . . . . . . Hacking | -11 -10 -10 -8 -8 -8 -7 -7 -7 -7 -6 --------- Run | Yrd Mat Sub Mat Gar Mat Fac Low Low Dat Pro Machines Accessed 38 | . 5 2 10 4 6 3 2 2 4 . Terminals 19 | . 4 . 6 4 5 . . . . . Fabricators 2 | . . . . . . 2 . . . . Repair Stations . | . . . . . . . . . . . Recycling Units 5 | . 1 . 2 . 1 1 . . . . Scanalyzers 1 | . . . 1 . . . . . . . Garrison Access 1 | . . . 1 . . . . . . . Total Hacks 131 | . 22 12 21 10 18 10 5 2 31 . Successful 90 | . 12 12 14 3 8 3 5 2 31 . Failed 41 | . 10 . 7 7 10 7 . . . . Catastrophic 6 | . 1 . 2 1 2 . . . . . Database Lockouts . | . . . . . . . . . . . Manual 36 | . 15 . 9 . 8 3 . 1 . . Terminals 62 | . 20 . 15 10 17 . . . . . Fabricators 4 | . . . . . . 4 . . . . Repair Stations . | . . . . . . . . . . . Recycling Units 12 | . 2 . 3 . 1 6 . . . . Scanalyzers 2 | . . . 2 . . . . . . . Garrison Access 1 | . . . 1 . . . . . . . Terminal Hacks 68 | . 6 12 5 3 4 . 5 2 31 . Record 26 | . . 11 . . . . 4 . 11 . Part Schematic 10 | . . . . . . . . . 10 . Robot Schematic 7 | . . . . . . . . . 7 . Prototype ID Bank 8 | . 4 . . . 1 . . . 3 . Open Door 3 | . . . . . . . 1 2 . . Branch Access Points 1 | . 1 . . . . . . . . . Alert Level 1 | . . . 1 . . . . . . . Unreport Threat 4 | . . . 2 . 2 . . . . . Locate Traps 1 | . . . 1 . . . . . . . Hauler Manifests 1 | . . . . . 1 . . . . . Zone Layout 2 | . 1 . 1 . . . . . . . Garrison Registry 1 | . . . . 1 . . . . . . Patrol Navigation 1 | . . . . 1 . . . . . . Security Stations 1 | . . . . 1 . . . . . . Proto ID Catalog 1 | . . 1 . . . . . . . . Fabricator Hacks 1 | . . . . . . 1 . . . . Network Status 1 | . . . . . . 1 . . . . Repair Station Hacks . | . . . . . . . . . . . Recycling Unit Hacks 5 | . 1 . 2 . 1 1 . . . . Retrieve Components 5 | . 1 . 2 . 1 1 . . . . Scanalyzer 2 | . . . 2 . . . . . . . Retrieve Study 2 | . . . 2 . . . . . . . Garrison Access Hacks 1 | . . . 1 . . . . . . . Unlock Access 1 | . . . 1 . . . . . . . Unauthorized Hacks 13 | . 5 . 4 . 3 1 . . . . Terminals 12 | . 5 . 4 . 3 . . . . . Track 1 | . . . 1 . . . . . . . Assimilate 1 | . . . 1 . . . . . . . Botnet 9 | . 4 . 2 . 3 . . . . . Operators 1 | . 1 . . . . . . . . . Fabricators . | . . . . . . . . . . . Repair Stations . | . . . . . . . . . . . Recycling Units 1 | . . . . . . 1 . . . . Mask 1 | . . . . . . 1 . . . . Scanalyzers . | . . . . . . . . . . . Garrison Access . | . . . . . . . . . . . Data Cores Recovered . | . . . . . . . . . . . Used . | . . . . . . . . . . . Hacking Detections 24 | . 4 . 9 4 5 2 . . . . Full Trace Events 5 | . . . 1 3 1 . . . . . Feedback Events . | . . . . . . . . . . . Feedback Blocked . | . . . . . . . . . . . Robot Schematics Acquired 7 | . . . . . . . . . 7 . Robots Built . | . . . . . . . . . . . Authchips . | . . . . . . . . . . . Time . | . . . . . . . . . . . Total Robot Build Rating . | . . . . . . . . . . . Part Schematics Acquired 10 | . . . . . . . . . 10 . Parts Built . | . . . . . . . . . . . Authchips . | . . . . . . . . . . . Time . | . . . . . . . . . . . Total Part Build Rating . | . . . . . . . . . . . Part Studies Acquired 1 | . . . 1 . . . . . . . Parts Repaired . | . . . . . . . . . . . Time . | . . . . . . . . . . . Parts Recycled . | . . . . . . . . . . . Recycled Matter . | . . . . . . . . . . . Retrieved Matter . | . . . . . . . . . . . Retrieved Components 38 | . 1 . 20 . 9 8 . . . . Parts Scanalyzed . | . . . . . . . . . . . Part Schematics Acquired . | . . . . . . . . . . . Parts Damaged . | . . . . . . . . . . . Bothacking | -11 -10 -10 -8 -8 -8 -7 -7 -7 -7 -6 ------------ Run | Yrd Mat Sub Mat Gar Mat Fac Low Low Dat Pro Used RIF Installer . | . . . . . . . . . . . Robots Hacked . | . . . . . . . . . . . Non-combat . | . . . . . . . . . . . Combat . | . . . . . . . . . . . Robot Hacks Applied . | . . . . . . . . . . . Relay Couplers Released 3 | . . . . 3 . . . . . . Programmers 3 | . . . . 3 . . . . . . Fabnet Peak Effective % . | . . . . . . . . . . . Robots Rewired . | . . . . . . . . . . . Allies Hacked . | . . . . . . . . . . . Hacks Repelled . | . . . . . . . . . . . Allies | -11 -10 -10 -8 -8 -8 -7 -7 -7 -7 -6 -------- Run | Yrd Mat Sub Mat Gar Mat Fac Low Low Dat Pro Total Allies 2 | . . . 1 . . . . . . 1 Largest Group 1 | . . . 1 1 . . . . . 1 Highest-Rated Group 96 | . . . 10 10 . . . . . 96 Highest-Rated Ally 96 | . . . 10 10 . . . . . 96 Initial Warlord ECA Mod 5 | . . . . . 5 4 4 4 4 3 Total Orders 1 | . . . . 1 . . . . . . STAY 1 | . . . . 1 . . . . . . Ally Attacks 6 | . . . . . . . . . . 6 Total Damage 137 | . . . . . . . . . . 137 Kills 2 | . . . . . . . . . . 2 Allies Corrupted . | . . . . . . . . . . . Allies Melted . | . . . . . . . . . . . Intel | -11 -10 -10 -8 -8 -8 -7 -7 -7 -7 -6 ------- Run | Yrd Mat Sub Mat Gar Mat Fac Low Low Dat Pro Active Infowar (turns) 1362 | 11 149 . . . . 488 157 175 41 341 Sensors 1199 | . . . . . . 488 157 175 41 338 Terrain 160 | 11 149 . . . . . . . . . Decoding 3 | . . . . . . . . . . 3 Robot Analysis Total . | . . . . . . . . . . . Derelict Logs Recovered 1 | . . . . . . . . 1 . . Drone Launches . | . . . . . . . . . . . Drone Recoveries . | . . . . . . . . . . . Exploration | -11 -10 -10 -8 -8 -8 -7 -7 -7 -7 -6 ------------- Run | Yrd Mat Sub Mat Gar Mat Fac Low Low Dat Pro Turns Passed 9287 | 71 333 1622 2096 2791 1001 628 157 175 41 372 Spaces Moved 5776 | 37 254 902 850 1535 454 537 320 373 92 422 Core 41 | 10 . . . . . . . . . 31 Treads 2409 | . . . 484 1535 390 . . . . . Legs 1549 | 27 254 902 366 . . . . . . . Wheels . | . . . . . . . . . . . Hover 1777 | . . . . . 64 537 320 373 92 391 Flight . | . . . . . . . . . . . Fastest Speed 44 | 50 120 120 105 170 108 44 44 44 44 44 Average Speed 135 | 139 120 154 185 170 161 97 44 44 44 71 Slowest Speed 400 | 200 120 190 400 170 330 104 44 44 44 150 Overloaded Moves . | . . . . . . . . . . . Propulsion Burnouts . | . . . . . . . . . . . Robots Hopped . | . . . . . . . . . . . Potential Cave-ins . | . . . . . . . . . . . Cave-ins Triggered . | . . . . . . . . . . . Exploration Rate (%) 54 | 3 61 59 76 94 42 17 58 51 75 62 Regions Visited 10 Branch Regions 5 Pre-discovered Areas 2 | . . . . . . . 1 . 1 . Known Exits Taken 6 | . . . 1 . 1 1 1 1 1 . Unknown Exits Taken 3 | 1 1 1 . . . . . . . . Scrap Searched 15 | . . 11 . . . . 1 2 . 1 Spaces Dug 32 | . . 6 1 18 . 3 1 1 . 2 Terrain Destroyed 186 | . . 6 28 88 45 4 3 3 . 9 Melee 22 | . . . 1 18 . 3 . . . . Projectile 57 | . . 6 26 . 9 1 3 3 . 9 AOE 107 | . . . 1 70 36 . . . . . Terrain Rammed . | . . . . . . . . . . . Walls Destroyed . | . . . . . . . . . . . Machines Disabled . | . . . . . . . . . . . Actions | -11 -10 -10 -8 -8 -8 -7 -7 -7 -7 -6 --------- Run | Yrd Mat Sub Mat Gar Mat Fac Low Low Dat Pro Total 6644 | 48 269 1031 1163 1634 631 599 329 380 91 469 Wait 257 | . . 44 98 15 75 8 . . . 17 Move 5764 | 36 253 901 850 1531 453 536 319 372 91 422 Hop . | . . . . . . . . . . . Pick Up 73 | 2 5 17 18 4 9 11 3 2 . 2 Fast Attach 12 | 7 . . 4 . . . . . . 1 Attach 26 | . . 4 5 3 3 8 1 . . 2 Detach 2 | . . . . . . 2 . . . . Swap 60 | . 2 4 27 7 14 6 . . . . Drop 50 | . 1 5 24 . 8 4 2 2 . 4 Fire 357 | 2 8 56 125 52 66 19 4 4 . 21 Melee 30 | . . . 3 22 . 5 . . . . Ram . | . . . . . . . . . . . Kick 9 | 1 . . 8 . . . . . . . Crush 3 | . . . . . 3 . . . . . Escape Stasis . | . . . . . . . . . . . Rewire . | . . . . . . . . . . . Trap 1 | . . . 1 . . . . . . . Miscellaneous . | . . . . . . . . . . . Route ------- -11/Scrapyard -10/Materials (discovered 5 exits: [*Mat x2] / *Min x2 / *Sub) -10/Subcaves (discovered 2 exits: *Mat / [*Rec]) -8/Materials (discovered 3 exits: *Fac x2 / Gar) -8/Garrison (discovered 3 exits: *Mat x3) -8/Materials -7/Factory (discovered 2 exits: *Fac / *Low) -7/Lower Caves -7/Lower Caves -7/Data Miner -6/Proximity Caves History --------- Turn | Location | Event 27 | -11/Scrapyard | Discovered new exit (range 14) 72 | -11/Scrapyard | Entered Materials 88 | -10/Materials | Discovered new exit (range 15) 164 | -10/Materials | Identified exit to Mines 199 | -10/Materials | Discovered new exit (range 14) 318 | -10/Materials | Build established: Mutant 321 | -10/Materials | Discovered new exit (range 5) 399 | -10/Materials | Discovered new exit (range 6) 405 | -10/Materials | Entered Subcaves 783 | -10/Subcaves | A swath of the cavern ceiling suddenly collapsed 1044 | -10/Subcaves | Discovered new exit (range 11) 1484 | -10/Subcaves | Visited Clippyterm 1858 | -10/Subcaves | Visited 4L-MR0's lab 1881 | -10/Subcaves | Found Gun Armor 1928 | -10/Subcaves | Discovered new exit (range 12) 2027 | -10/Subcaves | Entered Materials 2027 | -8/Materials | Evolved 4 slots: Propulsion x2, Utility x2 2760 | -8/Materials | Build established: Scavenger-Mutant 3082 | -8/Materials | Discovered new exit (range 3) 3085 | -8/Materials | Identified exit to Factory 3255 | -8/Materials | Build established: Mutant 3697 | -8/Materials | Discovered exit to Factory (range 10) 4018 | -8/Materials | Garrison activated, responded to threat 4123 | -8/Materials | Identified exit to Garrison 4123 | -8/Materials | Entered Garrison 4123 | -8/Garrison | Accompanied by 1 ally 4125 | -8/Garrison | Attached Gun Armor, gained temporary slots: Weapon x2 4179 | -8/Garrison | Triggered checkpoint 4321 | -8/Garrison | Triggered checkpoint 4335 | -8/Garrison | Triggered checkpoint 4335 | -8/Garrison | Triggered checkpoint 4438 | -8/Garrison | Build established: Gunner 4717 | -8/Garrison | Discovered new exit (range 12) 4736 | -8/Garrison | Identified exit to Materials 4757 | -8/Garrison | Triggered checkpoint 4939 | -8/Garrison | Triggered checkpoint 5037 | -8/Garrison | Discovered exit to Materials (range 13) 5095 | -8/Garrison | Triggered checkpoint 5311 | -8/Garrison | Triggered checkpoint 5362 | -8/Garrison | Discovered exit to Materials (range 11) 6016 | -8/Garrison | Phase Generator disabled 6036 | -8/Garrison | Learned Materials security intel 6465 | -8/Garrison | Attempted to access garrison exit controls, blocked by remote lockdown 6649 | -8/Garrison | Attempted to access garrison exit controls, blocked by remote lockdown 6892 | -8/Garrison | Discovered exit to Materials (range 85) 6892 | -8/Garrison | Discovered exit to Materials (range 80) 6892 | -8/Garrison | Discovered exit to Materials (range 13) 6914 | -8/Garrison | Entered Materials 7314 | -8/Materials | First assault squad dispatched 7378 | -8/Materials | Discovered exit to Factory (range 3) 7561 | -8/Materials | Core integrity fell below 50% 7593 | -8/Materials | Lost 3 parts (3w) 7595 | -8/Materials | Destroyed 7 combat bots 7915 | -8/Materials | Entered Factory 7915 | -7/Factory | Evolved 2 slots: Propulsion x1, Utility x1 8341 | -7/Factory | Build established: Skirmisher 8379 | -7/Factory | Discovered new exit (range 13) 8527 | -7/Factory | Discovered new exit (range 13) 8529 | -7/Factory | Identified exit to Factory 8533 | -7/Factory | Identified exit to Lower Caves 8537 | -7/Factory | Lost 3 parts (2n1w) 8543 | -7/Factory | Entered Lower Caves 8558 | -7/Lower Caves | Learned location of 1 exit from Research 8558 | -7/Lower Caves | Learned Armory garrison access intel 8639 | -7/Lower Caves | Attracted the attention of an 0b10 outpost 8665 | -7/Lower Caves | Met a Warlord Commander 8666 | -7/Lower Caves | Learned location of Warlord (-4) 8667 | -7/Lower Caves | Warlord Commander delivered Encrypted Comm Array 8674 | -7/Lower Caves | Found Encrypted Comm Array 8695 | -7/Lower Caves | Discovered new exit (range 12) 8699 | -7/Lower Caves | Identified exit to Lower Caves 8700 | -7/Lower Caves | Entered another Lower Caves area 8809 | -7/Lower Caves | Build established: Hacker-Mutant 8822 | -7/Lower Caves | Encountered a Warlord checkpoint 8831 | -7/Lower Caves | Discovered new exit (range 15) 8837 | -7/Lower Caves | Identified exit to Data Miner 8848 | -7/Lower Caves | Learned Factory terminal intel 8860 | -7/Lower Caves | Acquired the password to a Derelict Tinkerer's latest research 8875 | -7/Lower Caves | Entered Data Miner 8875 | -7/Data Miner | Discovered new exit (range 6) 8884 | -7/Data Miner | Met Data Miner 8900 | -7/Data Miner | Learned location of Section 7 (-2) 8900 | -7/Data Miner | Acquired the access code to Warlord's prototype stash 8905 | -7/Data Miner | Received God Mode back door access code from Data Miner 8914 | -7/Data Miner | Identified exit to Proximity Caves 8916 | -7/Data Miner | Entered Proximity Caves 8981 | -6/Proximity Caves | Lost 3 parts (1p2n) 9062 | -6/Proximity Caves | Spotter reported a threat 9106 | -6/Proximity Caves | Spotted B-75 Beast 9217 | -6/Proximity Caves | Attracted the attention of an 0b10 checkpoint 9243 | -6/Proximity Caves | Attracted the attention of an 0b10 outpost 9256 | -6/Proximity Caves | Spotter reported a threat 9274 | -6/Proximity Caves | Core integrity fell below 50% 9280 | -6/Proximity Caves | Core integrity fell below 20% 9288 | -6/Proximity Caves | Destroyed by G-50 Soldier with Heavy Laser Last Messages --------------- 09259_ Gravmag System destroyed. 09261_ Dropped Cld. Pulse Rifle. 09264_ Hacking Suite destroyed. 09269_ Critical hit (Destroy). 09269_ Imp. Sensor Array destroyed. 09270_ C-45 Heavy ARC bursts open, deploying its payload. 09270_ G-67 Veteran unfolds itself. 09270_ L-41 Fighter unfolds itself. 09270_ G-50 Soldier unfolds itself. 09270_ I-36 Angel unfolds itself. 09270_ Airjet destroyed. 09270_ Hacking Suite destroyed. 09271_ Dropped Hyb. Deuterium Engine. 09284_ Searching scrap... 09284_ Found Com. Matter Pod. 09284_ Found IFF Parser. 09284_ Found 0b10 Decoder Chip [Scout]. 09284_ Found 64 Matter. 09285_ Acquired 0b10 Decoder Chip [Scout]. Map ----- +----------------------------------------------------+ | ?????????????????????????????????????????????????? | | ?????????????????????????????????????????????????? | | ?????????????????????????????????????????????????? | | ?????????????????????????????????????????????????? | | ?????????????????????????????????????????????????? | | ?????????????????????????????????????????????????? | | ?????????????????????????????????????????????????? | | ?????????????????????????????????????????????????? | | ?????????????????????????????????????????????????? | | ?????????????????????????????????????????????????? | | ?????????????????????????????????????????????????? | | #######??????????????????????????????????????????? | | ##?????????????????????????????????????????? | | #???????????????###???????????????????????? | | ### #??????????????? ???????????????????????? | | ##?## #??????????????? ???????????????????????? | | ##?##"##???????????????# ???????????????????????? | | #?##"###??????????????## #??????????????????????? | | #?#"# ##????????????## ###????????????????????? | | #### #????# ?????## ##???????????????????? | | "# #????# #??## ???????????????????? | | ###????# ## ????????????????????? | | ##??????## $ ?????????????????????? | | #???????? #?????????????????????? | | # #????????????# ##????????????????????? | | ### #????????????????# @ ##???????????????????? | | ??# #????????????????# ##??????????????????? | | ??# #???????????????## #??????????????????? | | ??# #???????????????# ! #??????????????????? | | ??# #########???????# !% #??????????????????? | | ??# ##??????## ##?????????????????? | | ??# [ #???????#### ##????????????????? | | ??## ### ##?????###?##s #????????????????? | | ???# #?## #??#### ##?#g ##????????????????? | | ??# ## ##?# ###g ##?????????????????? | | ?# ##?# "%" #??????????????????? | | # # ## ### " #??????????????????? | | ?###### ## ##??????????????????? | | ???????## # ##???????????????????? | | # ????????## # #####????????????????????? | | ## ###????????# # ##????????????????????????? | | ?# #??# ###### #?????????????????????????? | | ??#????# ######????????????????????? | | ???????# ##* ##???????????????????? | | ??????# #####?# #???????????????????? | | ??????# ?????????# #???????????????????? | | ?????????????????## #???????????????????? | | ??????????????????##""### ####???????????????????? | | ???????????????????###???##??????????????????????? | | ?????????????????????????????????????????????????? | +----------------------------------------------------+ Best States ------------- Heat Dissipation 53 Energy Generation 18 Energy Capacity 800 Matter Stores 300 Matter Capacity 300 Sight Range 16 Robot Scan Range 15 Terrain Scan Range 16 Terrain Scan Density 10 Armor Coverage 60 Evasion (%) 56 Targeting Accuracy 5 Recoil Reduction 4 Offensive Hacking 30 Item Schematics ----------------- Combat Drone Bay | -7/Data Miner | Free Lgt. Regenerative Plating | -7/Data Miner | Free Cld. Cesium-ion Thruster | -7/Data Miner | Free Ion Burst Cannon | -7/Data Miner | Free Exp. Utility Shielding | -7/Data Miner | Free Field Propulsion Drive | -7/Data Miner | Free Imp. Recalibrator | -7/Data Miner | Free Adv. Plasma Cannon | -7/Data Miner | Free Imp. Point Defense System | -7/Data Miner | Free Impulse Thruster | -7/Data Miner | Free Robot Schematics ------------------ M-14 Sweeper | -7/Data Miner | Free M-22 Extractor | -7/Data Miner | Free E-15 Imp | -7/Data Miner | Free Y-54 Guardian | -7/Data Miner | Free S-27 Virus | -7/Data Miner | Free B-60 Warrior | -7/Data Miner | Free Y-64 Sentinel | -7/Data Miner | Free Fabricated ------------ Nothing Repaired ---------- Nothing Studied --------- Aluminum Leg | -8/Materials | Hacked Alien Tech Used ----------------- None Achievements -------------- Look Less Dangerous Next Time Mistaken Identity Challenges ------------ None Game ------ Seed MetamassRemoteMagmablaster Manual? 0 Play Time 01:03:28 Cumulative 351.0 hours Start 2025.10.29 @ 13:07:22 End 2025.10.29 @ 14:08:50 Sessions 1 Manual Loads 0 Difficulty Rogue Special Mode None Game No. 173 Rogue 159 Adventurer 14 Explorer 0 Win Type - Total 18 Types 15/0/1/1/0/0/0/0/1/0 Lore% 65 Gallery% 72 Achievement% 44 Wizard Run 0 Options --------- Layout 1 ASCII 0 Keyboard 0 Movement Arrows Keybinds 0 Fullscreen 1 Font 32/SmallcapsGlow Map View 50x40 Zoom Use 0% Tactical HUD 1 Map Filters NONE Filters NONE Steam 1 RUN: 167fc875-02b5-4129-a66d-5eef504dee6c